bitfinex-derivatives/quotes_BTCF0:USTF0_20241010
["timestamp","ask_amount","ask_price","bid_price","bid_amount"]
[1728555766851,0.35381092,61119.0,61115.0,0.08189]
[1728555767049,0.12,61116.0,61115.0,0.08189]
[1728555767251,0.21038363,61116.0,61115.0,0.08189]
[1728555767448,0.25018363,61116.0,61115.0,0.08189]
[1728555768345,0.43025755,61116.0,61115.0,0.08289]
[1728555768554,0.4890027,61116.0,61115.0,0.08289]
[1728555768749,0.41390371,61116.0,61115.0,0.08289]
[1728555769846,0.1598,61116.0,61115.0,0.08389]
[1728555770050,0.07968219,61119.0,61118.0,0.081886]
[1728555770241,0.041,61127.0,61118.0,0.562686]
[1728555770441,0.041,61127.0,61126.0,0.081875]
[1728555771149,0.03015123,61128.0,61123.0,0.3608]
[1728555771356,0.0415,61131.0,61125.0,0.12]
[1728555771550,0.01,61127.0,61126.0,0.081875]
[1728555771953,0.01,61127.0,61126.0,0.13073435]
[1728555772150,0.01,61127.0,61126.0,0.081875]
[1728555772351,0.01,61127.0,61126.0,0.13069801]
[1728555772555,0.01,61127.0,61126.0,0.32069801]
[1728555772851,0.0415,61131.0,61126.0,0.19]
[1728555773054,0.0415,61131.0,61130.0,0.08187]
[1728555774549,0.0455,61131.0,61130.0,0.08187]
[1728555776055,0.0495,61131.0,61130.0,0.08187]
[1728555777253,0.008,61131.0,61130.0,0.44267]
[1728555777461,0.008,61131.0,61130.0,0.63267]
[1728555782061,0.008,61131.0,61130.0,0.44267]
[1728555782853,0.008,61131.0,61130.0,1.12343]
[1728555783052,0.008,61131.0,61130.0,0.66226779]
[1728555784059,0.008,61131.0,61130.0,0.67226779]
[1728555784460,0.09834706,61131.0,61130.0,0.67226779]
[1728555784654,0.09834706,61131.0,61130.0,1.76302779]
[1728555784655,0.03667669,61131.0,61130.0,1.76302779]
[1728555785453,0.17936305,61131.0,61130.0,1.76302779]
[1728555787362,0.17936305,61132.0,61130.0,1.76302779]
[1728555787568,0.17936305,61132.0,61131.0,0.310269]
[1728555787969,0.05871806,61132.0,61131.0,0.310269]
[1728555788174,0.96689473,61142.0,61140.0,0.081857]
[1728555788175,0.05871806,61141.0,61140.0,0.081857]
[1728555788366,0.05871806,61141.0,61140.0,0.442657]
[1728555789570,0.06671806,61141.0,61140.0,0.443657]
[1728555789770,0.11696966,61141.0,61140.0,0.443657]
[1728555789967,0.12396966,61141.0,61140.0,0.444657]
[1728555792573,0.015,61141.0,61140.0,0.444657]
[1728555793175,0.205,61141.0,61140.0,0.002]
[1728555793560,0.081861,61137.0,61131.0,0.081868]
[1728555793762,0.19,61133.0,61131.0,0.081868]
[1728555793969,0.0807,61132.0,61131.0,0.081868]
[1728555794171,0.0807,61132.0,61130.0,0.3608]
[1728555794482,0.0807,61132.0,61129.0,0.08187]
[1728555794483,0.57146,61132.0,61129.0,0.08187]
[1728555794778,0.19,61130.0,61129.0,0.08187]
[1728555795371,0.0807,61132.0,61125.0,0.3281]
[1728555795573,0.0807,61132.0,61131.0,0.271869]
[1728555796276,0.004,61137.0,61136.0,0.081862]
[1728555796474,0.081,61141.0,61136.0,0.19]
[1728555796675,0.081,61141.0,61140.0,0.081857]
[1728555798580,0.088,61141.0,61140.0,0.081857]
[1728555799690,0.096,61141.0,61140.0,0.081857]
[1728555799981,0.088,61141.0,61140.0,0.081857]
[1728555800181,0.096,61141.0,61140.0,0.081857]
[1728555801381,0.096,61141.0,61137.0,0.08186]
[1728555801580,0.19,61140.0,61138.0,0.081858]
[1728555801878,0.19,61140.0,61136.0,0.442661]
[1728555802081,0.19,61140.0,61136.0,0.3608]
[1728555802284,0.19,61140.0,61139.0,0.081858]
[1728555802787,0.19,61140.0,61134.0,0.04881793]
[1728555802788,0.007,61140.0,61134.0,0.04881793]
[1728555802986,0.007,61140.0,61138.0,0.081858]
[1728555803185,0.013,61140.0,61138.0,0.081858]
[1728555804382,0.013,61140.0,61139.0,0.081858]
[1728555805087,0.013,61140.0,61135.0,0.04881793]
[1728555805276,0.013,61140.0,61139.0,0.081858]
[1728555805473,0.081,61141.0,61139.0,0.081858]
[1728555805676,0.013,61140.0,61139.0,0.082858]
[1728555806079,0.006,61140.0,61139.0,0.082858]
[1728555806377,0.013,61140.0,61139.0,0.082858]
[1728555807584,0.05725614,61140.0,61139.0,0.081858]
[1728555807782,0.15607486,61140.0,61139.0,0.081858]
[1728555808584,0.16207486,61140.0,61139.0,0.082858]
[1728555810699,0.16207486,61140.0,61139.0,0.001]
[1728555810899,0.35207486,61140.0,61139.0,0.001]
[1728555814592,0.203,61140.0,61139.0,0.001]
[1728555814982,0.203,61140.0,61133.0,0.081866]
[1728555815990,0.138,61140.0,61135.0,0.081863]
[1728555816294,0.19,61138.0,61135.0,0.081863]
[1728555818101,0.19,61138.0,61133.0,0.13068393]
[1728555818601,0.19,61138.0,61134.0,0.081864]
[1728555818792,0.194,61138.0,61134.0,0.081864]
[1728555819495,0.19,61135.0,61133.0,0.001]
[1728555819695,0.081865,61134.0,61133.0,0.001]
[1728555820501,0.5508,61135.0,61127.0,0.00245385]
[1728555820693,0.5508,61129.0,61127.0,0.00245385]
[1728555820893,0.0813,61128.0,61127.0,0.00245385]
[1728555821500,0.163173,61128.0,61127.0,0.00245385]
[1728555821801,0.31228866,61128.0,61127.0,0.00245385]
[1728555822508,0.31228866,61128.0,61122.0,0.08188]
[1728555822706,0.19,61125.0,61122.0,0.08188]
[1728555823005,0.17988626,61123.0,61122.0,0.08188]
[1728555823303,0.27026195,61123.0,61122.0,0.08188]
[1728555823505,0.27021767,61123.0,61122.0,0.08188]
[1728555823700,0.25386499,61123.0,61122.0,0.08188]
[1728555823899,0.45117569,61123.0,61122.0,0.10288]
[1728555824700,0.45217569,61123.0,61122.0,0.10288]
[1728555824899,0.61562422,61123.0,61122.0,0.10288]
[1728555825102,0.45217569,61123.0,61122.0,0.10288]
[1728555825305,0.61562538,61123.0,61122.0,0.09188]
[1728555825501,0.61662538,61123.0,61122.0,0.10288]
[1728555825801,0.09237569,61123.0,61122.0,0.10288]
[1728555826101,0.25582538,61123.0,61122.0,0.10288]
[1728555826303,0.25582538,61123.0,61122.0,0.021]
[1728555826699,0.09237569,61123.0,61122.0,0.021]
[1728555827593,0.45317569,61123.0,61122.0,0.021]
[1728555828999,0.63301767,61123.0,61122.0,0.021]
[1728555829596,0.45317569,61123.0,61122.0,0.021]
[1728555829793,0.3628,61123.0,61122.0,0.021]
[1728555836508,0.4828,61123.0,61122.0,0.021]
[1728555836706,0.52290728,61123.0,61122.0,0.021]
[1728555837508,0.2927637,61123.0,61122.0,0.021]
[1728555837709,0.6535637,61123.0,61122.0,0.021]
[1728555838812,0.2927637,61123.0,61122.0,0.021]
[1728555839012,0.6535637,61123.0,61122.0,0.021]
[1728555841707,0.52290728,61123.0,61122.0,0.021]
[1728555841912,0.52290728,61123.0,61122.0,0.102881]
[1728555843012,0.16210728,61123.0,61122.0,0.102881]
[1728555844614,0.1621061,61123.0,61122.0,0.102881]
[1728555844810,0.122,61123.0,61122.0,0.16802768]
[1728555845603,0.122,61123.0,61122.0,0.16792627]
[1728555845906,0.11108115,61128.0,61122.0,0.16792981]
[1728555846107,0.11108115,61128.0,61125.0,0.04878684]
[1728555846414,0.11108115,61128.0,61126.0,0.04878684]
[1728555847414,0.12,61127.0,61126.0,0.04878684]
[1728555848408,0.12,61127.0,61124.0,0.06504881]
[1728555848610,0.19495415,61128.0,61124.0,0.06504881]
[1728555848611,0.4808,61125.0,61124.0,0.06504881]
[1728555848911,0.4808,61125.0,61124.0,0.06513465]
[1728555849515,0.4808,61125.0,61123.0,0.081879]
[1728555849819,0.4808,61125.0,61124.0,0.009]
[1728555851312,0.4818,61125.0,61123.0,0.09243225]
[1728555851515,0.4828,61125.0,61123.0,0.10343225]
[1728555852022,0.1491207,61124.0,61123.0,0.011]
[1728555852223,0.1491207,61124.0,61121.0,0.081882]
[1728555852520,0.1491207,61124.0,61123.0,0.011]
[1728555853319,0.5099207,61124.0,61123.0,0.011]
[1728555854722,0.5109207,61124.0,61123.0,0.022]
[1728555855117,0.5119207,61124.0,61123.0,0.022]
[1728555855321,0.5119207,61124.0,61123.0,0.103879]
[1728555857425,0.5119207,61124.0,61123.0,0.022]
[1728555858516,0.51192099,61124.0,61123.0,0.022]
[1728555859514,0.51192099,61124.0,61123.0,0.103879]
[1728555859720,0.15112099,61124.0,61123.0,0.103879]
[1728555859917,0.002,61124.0,61123.0,0.32639901]
[1728555860226,0.002,61124.0,61123.0,0.26858031]
[1728555860523,0.3265,61139.0,61127.0,0.12]
[1728555860723,0.4465,61139.0,61135.0,0.081863]
[1728555860933,0.4808,61136.0,61135.0,0.081863]
[1728555861228,0.5105571,61136.0,61135.0,0.081863]
[1728555861725,0.5105571,61136.0,61135.0,0.201863]
[1728555861726,0.0367571,61136.0,61135.0,0.201863]
[1728555861920,0.0024547,61140.0,61135.0,0.47462759]
[1728555862119,0.0024547,61140.0,61139.0,0.201858]
[1728555862318,0.0024547,61140.0,61139.0,0.4745466]
[1728555862619,0.96444,61142.0,61141.0,0.081855]
[1728555862818,0.96444,61142.0,61141.0,0.5671888]
[1728555863521,0.96444,61142.0,61141.0,0.6484202]
[1728555863829,0.96444,61142.0,61141.0,0.5671888]
[1728555864020,0.88644,61142.0,61141.0,0.5671888]
[1728555864527,0.88644,61142.0,61141.0,0.442655]
[1728555864827,0.90144,61142.0,61141.0,0.444655]
[1728555865127,0.90144,61142.0,61141.0,0.935335]
[1728555865329,0.90144,61142.0,61141.0,1.574435]
[1728555866222,0.90144,61142.0,61141.0,1.496435]
[1728555866424,0.90144,61142.0,61141.0,1.574435]
[1728555866624,0.90144,61142.0,61141.0,0.974435]
[1728555868925,0.90144,61142.0,61141.0,0.483755]
[1728555870127,1.02144,61142.0,61141.0,0.444655]
[1728555874435,1.02144,61142.0,61141.0,0.083855]
[1728555875032,1.11178012,61142.0,61141.0,0.083855]
[1728555875825,1.01541067,61142.0,61141.0,1.294535]
[1728555876035,0.90144,61142.0,61141.0,0.803855]
[1728555876234,0.90144,61142.0,61141.0,1.294535]
[1728555876641,0.90144,61142.0,61141.0,1.174535]
[1728555876833,0.90144,61142.0,61141.0,1.294535]
[1728555877034,0.90144,61142.0,61141.0,0.803855]
[1728555877238,1.01541067,61142.0,61141.0,0.803855]
[1728555877736,0.90144,61142.0,61141.0,0.083855]
[1728555878133,0.90144,61142.0,61141.0,1.174535]
[1728555878537,0.90144,61142.0,61141.0,1.364535]
[1728555878734,0.90144,61142.0,61141.0,1.376535]
[1728555878735,0.89444,61142.0,61141.0,1.376535]
[1728555879440,0.88744,61142.0,61141.0,1.375535]
[1728555879740,0.88744,61142.0,61141.0,0.789535]
[1728555879741,0.88844,61142.0,61141.0,0.789535]
[1728555879939,0.88844,61142.0,61141.0,0.298855]
[1728555882746,0.88844,61142.0,61141.0,1.389535]
[1728555883041,0.804449,61142.0,61141.0,1.389535]
[1728555883341,0.617012,61142.0,61141.0,1.43821062]
[1728555883529,0.534909,61142.0,61141.0,1.389535]
[1728555883731,0.450236,61142.0,61141.0,1.389535]
[1728555884644,0.450236,61142.0,61141.0,1.45443582]
[1728555884849,0.450236,61142.0,61141.0,1.46443582]
[1728555885237,0.368184,61142.0,61141.0,1.46443582]
[1728555885438,0.286137,61142.0,61141.0,1.399535]
[1728555885635,0.204094,61142.0,61141.0,1.399535]
[1728555885939,0.204094,61142.0,61141.0,1.589535]
[1728555885940,0.112165,61142.0,61141.0,1.589535]
[1728555886140,0.112165,61142.0,61141.0,1.399535]
[1728555886339,0.112165,61142.0,61141.0,2.121135]
[1728555886742,0.06302551,61142.0,61141.0,2.121135]
[1728555888642,0.06302551,61142.0,61141.0,2.24390464]
[1728555889244,0.06302551,61142.0,61141.0,2.32499537]
[1728555889442,0.06302551,61142.0,61141.0,2.24390464]
[1728555890146,0.06302551,61142.0,61141.0,2.39033766]
[1728555890545,0.0056961,61142.0,61141.0,2.39033766]
[1728555890841,0.00245375,61155.0,61141.0,2.30848266]
[1728555891046,0.08429175,61155.0,61154.0,0.442638]
[1728555892249,0.08529175,61155.0,61154.0,0.442638]
[1728555892562,0.08629175,61155.0,61154.0,0.442638]
[1728555893038,0.08529175,61155.0,61154.0,0.442638]
[1728555893251,0.09129175,61155.0,61154.0,0.442638]
[1728555895753,0.00945375,61155.0,61154.0,0.442638]
[1728555897048,0.04953586,61155.0,61154.0,0.442638]
[1728555897958,0.13137286,61155.0,61154.0,0.442638]
[1728555898258,0.04953586,61155.0,61154.0,0.442638]
[1728555898454,0.04953586,61155.0,61154.0,0.081838]
[1728555898455,0.09977643,61155.0,61154.0,0.081838]
[1728555898654,0.18161343,61155.0,61154.0,0.3608]
[1728555899658,0.34546482,61155.0,61154.0,0.3608]
[1728555899852,0.18161343,61155.0,61154.0,0.3608]
[1728555900246,0.081842,61151.0,61150.0,0.081843]
[1728555900556,0.26705928,61151.0,61144.0,0.081851]
[1728555900745,0.08185,61145.0,61144.0,0.081851]
[1728555900953,0.35742653,61145.0,61144.0,0.081851]
[1728555901154,0.35742653,61145.0,61138.0,0.12]
[1728555901155,0.51682691,61145.0,61138.0,0.12]
[1728555901349,0.12,61141.0,61135.0,0.3608]
[1728555901557,0.12,61141.0,61140.0,0.081857]
[1728555901752,0.04009197,61141.0,61140.0,0.081857]
[1728555902659,0.04109197,61141.0,61140.0,0.081857]
[1728555903067,0.04009197,61141.0,61140.0,0.084857]
[1728555903357,0.04009197,61141.0,61140.0,0.086857]
[1728555903555,0.21034463,61141.0,61140.0,0.005]
[1728555903765,0.21034463,61141.0,61140.0,0.086857]
[1728555904149,0.21034463,61141.0,61140.0,0.005]
[1728555904150,0.29219963,61141.0,61140.0,0.005]
[1728555904354,0.2419472,61141.0,61140.0,0.005]
[1728555904961,0.2419472,61141.0,61140.0,0.086857]
[1728555905156,0.12,61141.0,61140.0,0.083857]
[1728555905760,0.12,61141.0,61140.0,0.081857]
[1728555905962,0.121,61141.0,61140.0,0.081857]
[1728555906355,0.12,61141.0,61140.0,0.081857]
[1728555906555,0.128,61141.0,61140.0,0.081857]
[1728555907450,0.128,61141.0,61140.0,0.14680604]
[1728555908564,0.125,61141.0,61140.0,0.081857]
[1728555912066,0.16509262,61141.0,61140.0,0.081857]
[1728555913771,0.04509262,61141.0,61140.0,0.081857]
[1728555914167,0.13554039,61141.0,61140.0,0.081857]
[1728555914369,0.15206594,61141.0,61140.0,0.081857]
[1728555914767,0.2424116,61141.0,61140.0,0.081857]
[1728555914963,0.21285055,61168.0,61141.0,0.49068]
[1728555914964,0.081828,61162.0,61141.0,0.49068]
[1728555915267,0.081832,61159.0,61154.0,0.201838]
[1728555915474,0.12,61159.0,61154.0,0.201838]
[1728555915879,0.02922992,61157.0,61154.0,0.201838]
[1728555916075,0.3608,61161.0,61154.0,0.201838]
[1728555916275,0.00345375,61155.0,61154.0,0.201838]
[1728555916677,0.00545375,61155.0,61154.0,0.081838]
[1728555916982,0.00945375,61155.0,61154.0,0.081838]
[1728555926288,0.04695375,61155.0,61154.0,0.081838]
[1728555926483,0.00945375,61155.0,61154.0,0.081838]
[1728555927179,0.04953737,61155.0,61154.0,0.081838]
[1728555927393,0.09977946,61155.0,61154.0,0.081838]
[1728555927987,0.15848653,61155.0,61154.0,0.081838]
[1728555928188,0.09977904,61155.0,61154.0,0.081838]
[1728555929493,0.15848653,61155.0,61154.0,0.081838]
[1728555930904,0.19358653,61155.0,61154.0,0.081838]
[1728555931496,0.19358653,61155.0,61144.0,0.36324]
[1728555931497,0.55438653,61155.0,61144.0,0.36324]
[1728555931695,0.12,61145.0,61140.0,0.3608]
[1728555931995,0.12,61141.0,61140.0,0.442665]
[1728555932189,0.26903278,61141.0,61140.0,0.442665]
[1728555932782,0.14903278,61141.0,61140.0,0.442665]
[1728555932996,0.09032529,61141.0,61140.0,0.442665]
[1728555933389,0.09032529,61141.0,61140.0,0.456665]
[1728555934093,0.04008343,61141.0,61140.0,0.456665]
[1728555934294,0.04008343,61141.0,61140.0,0.095865]
[1728555934795,0.04008343,61141.0,61140.0,0.109865]
[1728555934998,0.04008343,61141.0,61140.0,0.095865]
[1728555935191,0.001,61141.0,61140.0,0.109865]
[1728555935499,0.001,61141.0,61140.0,0.095865]
[1728555935701,0.001,61141.0,61140.0,0.107865]
[1728555936202,0.001,61141.0,61140.0,0.106865]
[1728555936501,0.001,61141.0,61140.0,0.105865]
[1728555937803,0.202864,61141.0,61140.0,0.024]
[1728555937990,0.202864,61141.0,61140.0,0.02]
[1728555938190,0.201864,61141.0,61140.0,0.089865]
[1728555938497,0.201864,61141.0,61140.0,0.096865]
[1728555938498,0.202864,61141.0,61140.0,0.096865]
[1728555938687,0.121,61141.0,61140.0,0.088865]
[1728555939005,0.12,61141.0,61140.0,0.092865]
[1728555939199,0.0383,61144.0,61143.0,0.081861]
[1728555939894,0.1583,61144.0,61143.0,0.081861]
[1728555941199,0.1583,61144.0,61143.0,0.082861]
[1728555941901,0.1653,61144.0,61143.0,0.081861]
[1728555942494,0.1663,61144.0,61143.0,0.081861]
[1728555942694,0.1673,61144.0,61143.0,0.081861]
[1728555944201,0.1663,61144.0,61143.0,0.081861]
[1728555945403,0.1633,61144.0,61143.0,0.081861]
[1728555945705,0.1663,61144.0,61143.0,0.081861]
[1728555947307,0.1653,61144.0,61143.0,0.081861]
[1728555949116,0.1623,61144.0,61143.0,0.081861]
[1728555949306,0.1653,61144.0,61143.0,0.081861]
[1728555950108,0.25564623,61144.0,61143.0,0.081861]
[1728555950513,0.13564623,61144.0,61143.0,0.081861]
[1728555950711,0.17032476,61144.0,61143.0,1.292501]
[1728555950915,0.09734623,61144.0,61143.0,1.292501]
[1728555951108,0.04709272,61144.0,61143.0,1.292501]
[1728555951303,0.17772648,61144.0,61143.0,1.32175188]
[1728555951612,0.17071799,61144.0,61143.0,1.32175188]
[1728555951816,0.17671799,61144.0,61143.0,1.32175188]
[1728555952208,0.17171799,61144.0,61143.0,1.32175188]
[1728555952407,0.17171799,61144.0,61143.0,1.33575188]
[1728555952604,0.13163376,61144.0,61143.0,1.34975188]
[1728555952816,9.9e-07,61144.0,61143.0,1.34975188]
[1728555953409,9.9e-07,61144.0,61143.0,1.72055188]
[1728555957107,0.16332476,61156.0,61143.0,1.58363992]
[1728555957307,0.201841,61158.0,61157.0,0.081841]
[1728555959009,0.208841,61158.0,61157.0,0.082841]
[1728555960219,0.213841,61158.0,61157.0,0.082841]
[1728555961014,0.132,61158.0,61150.0,0.3608]
[1728555961206,0.201846,61154.0,61153.0,0.081846]
[1728555961610,0.081849,61152.0,61150.0,0.442651]
[1728555961811,0.0362,61151.0,61150.0,0.442651]
[1728555964009,0.0362,61151.0,61150.0,0.443651]
[1728555964217,0.0362,61151.0,61150.0,0.563651]
[1728555965122,0.04008484,61151.0,61150.0,0.202851]
[1728555965324,0.3608,61158.0,61150.0,0.202851]
[1728555965325,0.09032846,61152.0,61150.0,0.202851]
[1728555965614,0.14903774,61151.0,61150.0,0.082851]
[1728555965822,0.09032846,61151.0,61150.0,0.082851]
[1728555966817,0.09032846,61151.0,61150.0,0.081851]
[1728555967022,0.09032846,61151.0,61150.0,0.201851]
[1728555968212,0.09032846,61151.0,61150.0,0.202851]
[1728555969024,0.05870905,61157.0,61150.0,0.121]
[1728555969219,0.09032811,61156.0,61155.0,0.201845]
[1728555970322,0.21032811,61156.0,61150.0,0.001]
[1728555970522,0.12,61153.0,61150.0,0.001]
[1728555970724,0.14903716,61152.0,61151.0,0.08185]
[1728555971317,0.14903716,61152.0,61151.0,0.02585]
[1728555971525,0.14903716,61152.0,61145.0,0.201858]
[1728555971726,0.17961101,61146.0,61145.0,0.201858]
[1728555971921,0.14903716,61146.0,61145.0,0.201858]
[1728555972126,0.081851,61151.0,61145.0,0.201858]
[1728555972326,0.081851,61151.0,61150.0,0.081852]
[1728555973520,0.117351,61151.0,61150.0,0.081852]
[1728555973825,0.0355,61151.0,61150.0,0.081852]
[1728555974422,0.11735,61151.0,61150.0,0.081852]
[1728555974631,0.15375,61151.0,61150.0,0.082852]
[1728555975624,0.15475,61151.0,61150.0,0.082852]
[1728555976529,0.15475,61151.0,61150.0,0.081852]
[1728555980935,0.15475,61151.0,61145.0,0.3608]
[1728555981132,0.201857,61148.0,61144.0,0.02920981]
[1728555981435,0.081864,61141.0,61140.0,0.11378968]
[1728555981730,0.201864,61141.0,61140.0,0.19565368]
[1728555982131,0.12,61143.0,61140.0,0.23378968]
[1728555982330,0.0344,61147.0,61143.0,0.12]
[1728555982533,0.0344,61147.0,61146.0,0.201857]
[1728555983726,0.0364,61147.0,61146.0,0.201857]
[1728555984438,0.0344,61147.0,61146.0,0.201857]
[1728555985735,0.116256,61147.0,61146.0,0.201857]
[1728555986041,0.116256,61147.0,61146.0,0.202857]
[1728555986540,0.117256,61147.0,61146.0,0.082857]
[1728555986837,0.117256,61147.0,61146.0,0.081857]
[1728555987534,0.116256,61147.0,61146.0,0.081857]
[1728555987740,0.117256,61147.0,61146.0,0.081857]
[1728555989533,0.237256,61147.0,61146.0,0.081857]
[1728555993047,0.32759375,61147.0,61146.0,0.081857]
[1728555994433,0.4911797,61147.0,61146.0,0.081857]
[1728555995541,0.50720817,61147.0,61143.0,0.02945649]
[1728555995837,0.08187,61137.0,61136.0,0.081869]
[1728555996029,0.24195896,61137.0,61136.0,0.081869]
[1728555996230,0.3509231,61137.0,61136.0,0.081869]
[1728555996439,0.3886231,61137.0,61136.0,0.081869]
[1728555996740,0.081873,61134.0,61133.0,0.08432732]
[1728555996936,0.38176838,61134.0,61133.0,0.08432732]
[1728555997238,0.47212366,61134.0,61133.0,0.08432732]
[1728555997546,0.23095499,61134.0,61133.0,0.08432732]
[1728555997735,0.53085037,61134.0,61133.0,0.08432732]
[1728555998043,0.53085065,61134.0,61133.0,0.08532732]
[1728555998239,0.47200063,61134.0,61133.0,0.08532732]
[1728555999241,0.29222828,61134.0,61133.0,0.08532732]
[1728555999546,0.25374247,61134.0,61133.0,0.20532732]
[1728555999751,0.09035528,61134.0,61133.0,0.20532732]
[1728556000042,0.14703867,61134.0,61133.0,0.20532732]
[1728556000248,0.04009674,61134.0,61133.0,0.20532732]
[1728556000431,0.04309674,61134.0,61133.0,0.20532732]
[1728556001642,0.04309674,61134.0,61133.0,0.08532732]
[1728556002438,0.04309674,61134.0,61133.0,0.27532732]
[1728556003444,0.04309674,61134.0,61133.0,0.63612732]
[1728556003640,0.14703828,61136.0,61135.0,0.081872]
[1728556003837,0.081866,61139.0,61135.0,0.12476917]
[1728556004039,0.081866,61139.0,61138.0,0.16307511]
[1728556004237,0.081866,61139.0,61138.0,0.28784428]
[1728556005241,0.081866,61139.0,61138.0,0.20663717]
[1728556005644,0.083866,61139.0,61138.0,0.20663717]
[1728556006440,0.087866,61139.0,61138.0,0.081868]
[1728556006643,0.087866,61139.0,61138.0,0.20663717]
[1728556006841,0.083866,61139.0,61138.0,0.20663717]
[1728556007045,0.083866,61139.0,61138.0,0.20763717]
[1728556009437,0.081866,61139.0,61138.0,0.20663717]
[1728556009639,0.081866,61139.0,61138.0,0.21563717]
[1728556010252,0.081866,61139.0,61138.0,0.20763717]
[1728556010450,0.083866,61139.0,61138.0,0.20763717]
[1728556010748,0.083866,61139.0,61138.0,0.082868]
[1728556011145,0.083866,61139.0,61138.0,0.081868]
[1728556011353,0.083866,61139.0,61138.0,0.082868]
[1728556011651,0.002,61139.0,61138.0,0.28887387]
[1728556012148,0.002,61139.0,61138.0,0.20763398]
[1728556012658,0.002,61139.0,61138.0,0.20663398]
[1728556012952,0.002,61139.0,61138.0,0.20763398]
[1728556013253,0.081858,61145.0,61144.0,0.08186]
[1728556013642,0.442651,61151.0,61148.0,0.081854]
[1728556014539,0.08430699,61150.0,61148.0,0.081854]
[1728556014945,0.0716,61149.0,61148.0,0.081854]
[1728556017555,0.002,61149.0,61148.0,0.081854]
[1728556018546,0.09233676,61149.0,61148.0,0.081854]
[1728556018861,0.11096185,61149.0,61148.0,0.081854]
[1728556019151,0.09233627,61149.0,61148.0,0.081854]
[1728556023556,0.17418927,61149.0,61148.0,0.081854]
[1728556024577,0.29418927,61149.0,61148.0,0.081854]
[1728556025055,0.36748927,61149.0,61148.0,0.081854]
[1728556025663,0.277153,61149.0,61148.0,0.081854]
[1728556031763,0.1953,61149.0,61148.0,0.081854]
[1728556032076,0.277153,61149.0,61148.0,0.081854]
[1728556033564,0.36748938,61149.0,61148.0,0.081854]
[1728556036166,0.53106004,61149.0,61148.0,0.081854]
[1728556036560,0.36748938,61149.0,61148.0,0.081854]
[1728556039377,0.54729401,61149.0,61148.0,0.081854]
[1728556039584,0.36748938,61149.0,61148.0,0.081854]
[1728556040570,0.45695763,61149.0,61148.0,0.081854]
[1728556040966,0.277153,61149.0,61148.0,0.081854]
[1728556044276,0.157153,61149.0,61148.0,0.081854]
[1728556046773,0.157153,61149.0,61148.0,0.13071915]
[1728556046969,0.157153,61149.0,61148.0,0.13071932]
[1728556047375,0.157153,61149.0,61147.0,0.04886532]
[1728556047571,0.442654,61148.0,61147.0,0.04886532]
[1728556047780,0.562654,61148.0,61147.0,0.04886532]
[1728556048181,0.562654,61148.0,61147.0,0.13072132]
[1728556048676,0.71171754,61148.0,61147.0,0.081856]
[1728556048881,0.71171754,61148.0,61147.0,0.082856]
[1728556049279,0.71471754,61148.0,61147.0,0.081856]
[1728556049579,0.71671754,61148.0,61147.0,0.081856]
[1728556050080,0.71771754,61148.0,61147.0,0.082856]
[1728556050481,0.71771754,61148.0,61147.0,0.066256]
[1728556050875,0.71871754,61148.0,61147.0,0.066256]
[1728556051581,0.71771754,61148.0,61147.0,0.065256]
[1728556052478,0.71171754,61148.0,61147.0,0.065256]
[1728556052677,0.71871754,61148.0,61147.0,0.001]
[1728556054482,0.081857,61146.0,61145.0,0.081858]
[1728556054679,0.081857,61146.0,61141.0,0.0292322]
[1728556054976,0.081862,61143.0,61142.0,0.081861]
[1728556055181,0.23092554,61143.0,61142.0,0.081861]
[1728556055773,0.04090316,61143.0,61142.0,0.30407017]
[1728556056280,0.04290316,61143.0,61142.0,0.35724153]
[1728556056673,0.52370316,61143.0,61142.0,0.22247704]
[1728556056872,1.01434316,61143.0,61142.0,0.12476064]
[1728556057083,1.01434316,61143.0,61142.0,0.20620702]
[1728556057471,1.61434316,61143.0,61142.0,0.001]
[1728556057676,1.01534316,61143.0,61142.0,0.001]
[1728556058073,1.056301,61143.0,61142.0,0.003]
[1728556058275,1.656301,61143.0,61142.0,0.003]
[1728556058479,1.68512581,61143.0,61142.0,0.06812698]
[1728556059171,1.68512581,61143.0,61142.0,0.06512698]
[1728556059172,1.68812581,61143.0,61142.0,0.06512698]
[1728556059384,1.69212581,61143.0,61142.0,0.06612698]
[1728556059583,1.69212581,61143.0,61142.0,0.001]
[1728556059888,1.09212581,61143.0,61142.0,0.001]
[1728556060779,1.08812581,61143.0,61141.0,0.06512698]
[1728556060982,0.60148581,61143.0,61142.0,0.001]
[1728556061178,0.60148581,61143.0,61142.0,0.06712698]
[1728556061179,0.60448581,61143.0,61142.0,0.06712698]
[1728556061579,0.60448581,61143.0,61142.0,0.002]
[1728556061781,0.51862481,61143.0,61142.0,0.001]
[1728556061975,0.60448581,61143.0,61142.0,0.001]
[1728556062980,0.60448581,61143.0,61141.0,0.06612698]
[1728556062981,0.081862,61142.0,61141.0,0.06612698]
[1728556063178,0.081862,61142.0,61141.0,0.001]
[1728556063685,0.081865,61140.0,61137.0,0.04880465]
[1728556063986,0.562667,61138.0,61137.0,0.04880465]
[1728556065284,0.562667,61138.0,61137.0,0.04980465]
[1728556065285,0.569667,61138.0,61137.0,0.04980465]
[1728556065874,0.208867,61138.0,61137.0,0.04980465]
[1728556066085,0.569667,61138.0,61137.0,0.04980465]
[1728556067280,0.208867,61138.0,61137.0,0.04980465]
[1728556067476,0.569667,61138.0,61137.0,0.04980465]
[1728556069384,0.007,61138.0,61137.0,0.202869]
[1728556070185,0.007,61138.0,61137.0,0.30729598]
[1728556070893,0.002,61138.0,61137.0,0.241169]
[1728556071077,0.006,61138.0,61137.0,0.241169]
[1728556071587,0.004,61138.0,61137.0,0.246169]
[1728556071782,0.3608,61140.0,61139.0,0.081866]
[1728556073787,0.40089553,61140.0,61139.0,0.081866]